Cogmind - Beta 14 @@@ ROGUE MODE // 2024.08.30 @ 21:38:16 Player: Unit6544 Result: Destroyed by D-53 Grenadier with Mini Grenade Launcher Performance ------------- Evolutions (0) 0 Regions Visited (4) 800 Robots Destroyed (11) 55 Value Destroyed (227) 227 Prototype IDs (2) 40 Alien Tech Used (0) 0 Bonus (300) 300 TOTAL SCORE: 1422 Bonus ------- Aligned with FarCom 300 Cogmind --------- Core Integrity 0/250 Matter 295/300 Energy 100/100 System Corruption 0% Temperature Cool (0) Movement Rolling (380) Ox20 Location -9/Mines Parts ------- > --- POWER (1) -------- (None) > --- PROPULSION (2) --- Wheel > --- UTILITY (2) ------ Humpback > --- WEAPON (2) ------- Small Laser > --- INVENTORY (35) --- Small Laser Peak State ------------ > --- POWER ------------ Light Ion Engine > --- PROPULSION ------- Wheel Wheel > --- UTILITY ---------- Heat Sink High-capacity Storage Unit > --- WEAPON ----------- Small Laser Small Laser > --- INVENTORY -------- Small Laser [Rating: 7] Favorites ----------- Power Light Ion Engine Engine Light Ion Engine Propulsion Wheel Wheel Wheel Flight Unit Flight Unit Utility Heat Sink Device Heat Sink Storage High-capacity Storage Unit Weapon Small Laser Energy Gun Small Laser Ballistic Gun Light Assault Rifle Build | -11 -10 -10 -10 -9 ------- Run | Yrd Mat Min Exi Min Slots Evolved . | . . . . . Power . | . . . . . Propulsion . | . . . . . Utility . | . . . . . Weapon . | . . . . . Parts Attached 18 | 6 10 . 2 . Power 1 | 1 . . . . Engine 1 | 1 . . . . Core . | . . . . . Reactor . | . . . . . Propulsion 8 | 2 6 . . . Treads . | . . . . . Leg . | . . . . . Wheel 4 | 2 2 . . . Hover . | . . . . . Flight 4 | . 4 . . . Utility 4 | 1 1 . 2 . Device 1 | . 1 . . . Storage 3 | 1 . . 2 . Processor . | . . . . . Hackware . | . . . . . Protection . | . . . . . Artifact . | . . . . . Weapon 5 | 2 3 . . . Energy Gun 4 | 2 2 . . . Energy Cannon . | . . . . . Ballistic Gun 1 | . 1 . . . Ballistic Cannon . | . . . . . Launcher . | . . . . . Special Weapon . | . . . . . Impact Weapon . | . . . . . Slashing Weapon . | . . . . . Piercing Weapon . | . . . . . Special Melee Weapon . | . . . . . Unidentified Prototypes . | . . . . . Parts Lost 7 | . 4 . . 3 Power 1 | . . . . 1 Propulsion 4 | . 3 . . 1 Utility . | . . . . . Weapon 2 | . 1 . . 1 Highest Loss Streak 3 | . 3 . . 3 To Critical Strikes . | . . . . . Average Slot Usage (%) 86 | . 76 85 93 71 Engine 13 | . 14 14 14 . Wheel 22 | . 13 28 28 28 Flight 3 | . 9 . . . Device 8 | . 4 14 11 . Storage 8 | . 6 . 10 14 Energy Gun 27 | . 27 28 28 28 Peak Build Rating 7 | 6 6 6 7 7 Average Rating 6 | 3 5 6 6 6 On Entrance 5 | . 6 6 6 7 Naked Turns . | . . . . . Heaviest Build 205 | 12 12 6 205 205 Greatest Support 26 | 26 26 20 20 20 Greatest Overweight (x) 20 | . 1 . 10 20 Average Overweight (x) 1 | . . . 1 11 Largest Inventory Capacity 35 | 8 8 5 35 35 Average Capacity 12 | 6 6 5 18 35 Most Carried 5 | 5 3 1 3 1 Average Carried . | 1 . 1 1 1 Final Capacity 35 | 8 5 5 35 35 Final Carried 1 | 1 1 1 1 1 Class Distribution -------------------- 49% | Scavenger-Mutant 38% | Mutant 11% | Hauler-Mutant Dominant Class ---------------- Mutant | -10/Materials Scavenger-Mutant | -10/Mines Scavenger-Mutant | -10/Exiles Hauler-Mutant | -9/Mines Resources | -11 -10 -10 -10 -9 ----------- Run | Yrd Mat Min Exi Min Matter Collected 421 | 219 202 . . . Remotely . | . . . . . Salvage Created 342 | . 342 . . . Parts 27 | . 27 . . . Haulers Intercepted . | . . . . . Recyclers Shooed 1 | . 1 . . . Parts Field Recycled . | . . . . . Retrieved Matter . | . . . . . Parts Self-Destructed . | . . . . . Prevented . | . . . . . Kills | -11 -10 -10 -10 -9 ------- Run | Yrd Mat Min Exi Min Combat Hostiles Destroyed 8 | . 8 . . . Guns 7 | . 7 . . . Classes Destroyed 5 | . 5 . . . Builder 1 | . 1 . . . Recycler 1 | . 1 . . . Watcher 1 | . 1 . . . Swarmer 3 | . 3 . . . Grunt 5 | . 5 . . . Best Kill Streak 4 | . 4 . . . Combat Bots Only 4 | . 4 . . . Max Kills in Single Turn 2 | . 2 . . . Gunslinging 1 | . 1 . . . Exploded . | . . . . . Melee . | . . . . . Uniques/NPCs Destroyed . | . . . . . Combat | -11 -10 -10 -10 -9 -------- Run | Yrd Mat Min Exi Min Hostile Shots Fired 73 | . 59 . . 14 Missed 20 | . 15 . . 5 Damage Taken 717 | . 463 . . 254 Core 251 | . 194 . . 57 Absorbed by Shields . | . . . . . Core Remaining (%) 100 | 100 . . . . Volleys Fired 34 | . 34 . . . Largest 2 | . 2 . . . Hottest 100 | . 100 . . . Shots Fired 67 | . 67 . . . Gun 67 | . 67 . . . Cannon . | . . . . . Launcher . | . . . . . Special . | . . . . . Kinetic 1 | . 1 . . . Thermal 66 | . 66 . . . Explosive . | . . . . . Electromagnetic . | . . . . . Robot Hit Streak 6 | . 6 . . . Robot Miss Streak 4 | . 4 . . . Penetration Max . | . . . . . Secondary Targets 1 | . 1 . . . Max Gunslinging Chain 1 | . 1 . . . Shots Hit Robots 35 | . 35 . . . Core Hits 16 | . 16 . . . Critical Kills . | . . . . . Critical Parts Destroyed . | . . . . . Critical Strikes 3 | . 3 . . . Burn 3 | . 3 . . . Melee Attacks . | . . . . . Impact . | . . . . . Slashing . | . . . . . Piercing . | . . . . . Sneak Attacks . | . . . . . Combat Hostiles . | . . . . . Follow-up Attacks . | . . . . . Damage Inflicted 446 | . 446 . . . Guns 446 | . 446 . . . Cannons . | . . . . . Explosions . | . . . . . Melee . | . . . . . Ramming . | . . . . . Kinetic 6 | . 6 . . . Thermal 440 | . 440 . . . Explosive . | . . . . . Electromagnetic . | . . . . . Impact . | . . . . . Slashing . | . . . . . Piercing . | . . . . . Highest Corruption . | . . . . . Average Corruption . | . . . . . Corruption Purged . | . . . . . Corruption Blocked . | . . . . . Overload Shots . | . . . . . Overflow Damage . | . . . . . Projectiles . | . . . . . Explosions . | . . . . . Melee . | . . . . . Knockbacks . | . . . . . Impact . | . . . . . Kinetic . | . . . . . Secondary . | . . . . . Self-Inflicted Damage . | . . . . . Shots . | . . . . . Rammed . | . . . . . Targets Rammed . | . . . . . Kicked . | . . . . . Crushed . | . . . . . Highest Temperature 531 | . 531 . . . Average Temperature 180 | . 180 . . . Received Heat Transfer 243 | . 243 . . . Effects 15 | . 15 . . . Shutdowns 2 | . 2 . . . Interference 2 | . 2 . . . Matter Decay 2 | . 2 . . . Damage (minor) 2 | . 2 . . . Damage (major) 7 | . 7 . . . Siege Activations . | . . . . . Robots Corrupted . | . . . . . Combat Hostiles . | . . . . . Parts Fried . | . . . . . Impact Corruptions . | . . . . . Robots Melted 1 | . 1 . . . Combat Hostiles 1 | . 1 . . . Parts Melted 4 | . 4 . . . Heat Transferred 1387 | . 1387 . . . Parts Sabotaged . | . . . . . Parts Stolen . | . . . . . Parts Stripped . | . . . . . Power Chain Reactions . | . . . . . Alert | -11 -10 -10 -10 -9 ------- Run | Yrd Mat Min Exi Min Peak Influence 177 | . 177 69 . . Initial 69 | . . 69 . . Average 70 | . 81 69 . . Maximum Alert Level . | . . . . . Low Security (%) 100 | 100 100 100 . 100 Level 1 . | . . . . . Level 2 . | . . . . . Level 3 . | . . . . . Level 4 . | . . . . . Level 5 . | . . . . . High Security . | . . . . . Max Security . | . . . . . Squads Dispatched 1 | . 1 . . . Investigation 1 | . 1 . . . Extermination . | . . . . . Reinforcement . | . . . . . Assault . | . . . . . Garrison . | . . . . . Intercept . | . . . . . Searches Triggered . | . . . . . Construction Impeded . | . . . . . Haulers Reinforced . | . . . . . Active Scanning Responses . | . . . . . Cargo Convoy Interrupts . | . . . . . Stealth | -11 -10 -10 -10 -9 --------- Run | Yrd Mat Min Exi Min Distress Signals 3 | . 3 . . . Communications Jammed . | . . . . . Distress Signals . | . . . . . Times Spotted 38 | . 12 . . 26 Peak Tracking Total 26 | . 6 . . 26 Tactical Retreats . | . . . . . Traps | -11 -10 -10 -10 -9 ------- Run | Yrd Mat Min Exi Min Traps Triggered . | . . . . . Indirectly . | . . . . . Trap Hack Attempts . | . . . . . Triggered . | . . . . . Disarmed . | . . . . . Reprogrammed . | . . . . . Reused . | . . . . . Traps Extracted . | . . . . . Installed . | . . . . . Triggered . | . . . . . Machines | -11 -10 -10 -10 -9 ---------- Run | Yrd Mat Min Exi Min Machines Disabled . | . . . . . Max in Single Turn . | . . . . . Machines Repaired . | . . . . . Machines Dismantled . | . . . . . Machines Sabotaged . | . . . . . Overloaded Fab Kills . | . . . . . Hacking | -11 -10 -10 -10 -9 --------- Run | Yrd Mat Min Exi Min Machines Accessed 2 | . 2 . . . Terminals 2 | . 2 . . . Fabricators . | . . . . . Repair Stations . | . . . . . Recycling Units . | . . . . . Scanalyzers . | . . . . . Garrison Access . | . . . . . Total Hacks 6 | . 6 . . . Successful 3 | . 3 . . . Failed 3 | . 3 . . . Catastrophic 1 | . 1 . . . Database Lockouts . | . . . . . Manual . | . . . . . Terminals 6 | . 6 . . . Fabricators . | . . . . . Repair Stations . | . . . . . Recycling Units . | . . . . . Scanalyzers . | . . . . . Garrison Access . | . . . . . Terminal Hacks 3 | . 3 . . . Prototype ID Bank 1 | . 1 . . . Locate Traps 1 | . 1 . . . Investigation Status 1 | . 1 . . . Fabricator Hacks . | . . . . . Repair Station Hacks . | . . . . . Recycling Unit Hacks . | . . . . . Scanalyzer . | . . . . . Garrison Access Hacks . | . . . . . Unauthorized Hacks . | . . . . . Terminals . | . . . . . Fabricators . | . . . . . Repair Stations . | . . . . . Recycling Units . | . . . . . Scanalyzers . | . . . . . Garrison Access . | . . . . . Data Cores Recovered . | . . . . . Used . | . . . . . Hacking Detections 2 | . 2 . . . Full Trace Events 2 | . 2 . . . Feedback Events . | . . . . . Feedback Blocked . | . . . . . Robot Schematics Acquired . | . . . . . Robots Built . | . . . . . Authchips . | . . . . . Time . | . . . . . Total Robot Build Rating . | . . . . . Part Schematics Acquired . | . . . . . Parts Built . | . . . . . Authchips . | . . . . . Time . | . . . . . Total Part Build Rating . | . . . . . Parts Repaired . | . . . . . Time . | . . . . . Parts Recycled . | . . . . . Recycled Matter . | . . . . . Retrieved Matter . | . . . . . Retrieved Components . | . . . . . Parts Scanalyzed . | . . . . . Part Schematics Acquired . | . . . . . Parts Damaged . | . . . . . Bothacking | -11 -10 -10 -10 -9 ------------ Run | Yrd Mat Min Exi Min Used RIF Installer . | . . . . . Robots Hacked . | . . . . . Non-combat . | . . . . . Combat . | . . . . . Robot Hacks Applied . | . . . . . Relay Couplers Released . | . . . . . Fabnet Peak Effective % . | . . . . . Robots Rewired . | . . . . . Allies Hacked . | . . . . . Hacks Repelled . | . . . . . Allies | -11 -10 -10 -10 -9 -------- Run | Yrd Mat Min Exi Min Total Allies . | . . . . . Largest Group . | . . . . . Highest-Rated Group . | . . . . . Highest-Rated Ally . | . . . . . Total Orders . | . . . . . Ally Attacks . | . . . . . Total Damage . | . . . . . Kills . | . . . . . Allies Corrupted . | . . . . . Allies Melted . | . . . . . Intel | -11 -10 -10 -10 -9 ------- Run | Yrd Mat Min Exi Min Robot Analysis Total . | . . . . . Derelict Logs Recovered . | . . . . . Drone Launches . | . . . . . Drone Recoveries . | . . . . . Exploration | -11 -10 -10 -10 -9 ------------- Run | Yrd Mat Min Exi Min Turns Passed 804 | 40 316 13 422 13 Spaces Moved 662 | 37 215 16 388 6 Core 16 | 16 . . . . Treads . | . . . . . Legs . | . . . . . Wheels 577 | 21 146 16 388 6 Hover . | . . . . . Flight 69 | . 69 . . . Fastest Speed 37 | 50 37 80 80 230 Average Speed 100 | 72 88 80 107 255 Slowest Speed 380 | 90 120 80 230 380 Overloaded Moves . | . . . . . Propulsion Burnouts . | . . . . . Robots Hopped 2 | . 2 . . . Cave-ins Triggered . | . . . . . Exploration Rate (%) 28 | 3 37 6 85 12 Regions Visited 4 Branch Regions 3 Pre-discovered Areas . | . . . . . Known Exits Taken . | . . . . . Unknown Exits Taken 4 | 1 1 1 1 . Scrap Searched . | . . . . . Spaces Dug . | . . . . . Terrain Destroyed . | . . . . . Melee . | . . . . . Projectile . | . . . . . AOE . | . . . . . Terrain Rammed . | . . . . . Walls Destroyed . | . . . . . Machines Disabled . | . . . . . Actions | -11 -10 -10 -10 -9 --------- Run | Yrd Mat Min Exi Min Total 739 | 49 276 15 393 6 Wait . | . . . . . Move 654 | 36 210 15 387 6 Hop 2 | . 2 . . . Pick Up 21 | 7 12 . 2 . Fast Attach . | . . . . . Attach 18 | 6 10 . 2 . Detach . | . . . . . Swap . | . . . . . Drop 10 | . 8 . 2 . Fire 34 | . 34 . . . Melee . | . . . . . Ram . | . . . . . Kick . | . . . . . Crush . | . . . . . Escape Stasis . | . . . . . Rewire . | . . . . . Trap . | . . . . . Miscellaneous . | . . . . . Route ------- -11/Scrapyard -10/Materials -10/Mines -10/Exiles -9/Mines History --------- Turn | Location | Event 11 | -11/Scrapyard | Discovered new exit (range 15) 41 | -11/Scrapyard | Entered Materials 131 | -10/Materials | Discovered new exit (range 7) 230 | -10/Materials | Core integrity fell below 50% 288 | -10/Materials | Lost 3 parts (2n1w) 309 | -10/Materials | Build established: Mutant 357 | -10/Materials | Entered Mines 366 | -10/Mines | Deemed a non-threat by the Exiles lab entrance 366 | -10/Mines | Discovered new exit (range 5) 370 | -10/Mines | Entered Exiles 391 | -10/Exiles | Met 8R-AWN 404 | -10/Exiles | Met EX-HEX 427 | -10/Exiles | Met EX-BIN 437 | -10/Exiles | Aligned with FarCom system 438 | -10/Exiles | Given EX-Vault access code 502 | -10/Exiles | Met EX-DEC 523 | -10/Exiles | Visited The Gauntlet 616 | -10/Exiles | Build established: Scavenger-Mutant 765 | -10/Exiles | Discovered new exit (range 14) 792 | -10/Exiles | Entered Mines 793 | -9/Mines | Assembled infested the area 798 | -9/Mines | Assisted by a Guerilla fighting off Assembled 799 | -9/Mines | Core integrity fell below 20% 805 | -9/Mines | Destroyed by D-53 Grenadier with Mini Grenade Launcher Last Messages --------------- S-10 Pest destroyed. HV Slug penetrates as-09248. as-09248 suffers critical hit (Destroy). as-12035 destroyed. as-39300 destroyed. as-17169 destroyed. as-98603 destroyed. as-81236 destroyed. as-73701 destroyed. HV Slug penetrates Wall. as-67319 destroyed. as-91760 destroyed. as-38224 destroyed. S-10 Pest destroyed. as-96486 destroyed. as-62864 destroyed. as-93275 destroyed. HV Slug penetrates Wall. Sml. Laser destroyed. Wheel destroyed. Map ----- +----------------------------------------------------+ | | | | | | | | | | | | | | | | | | | | | | | | | | | | | | | | | | | ??????????????????????????????????????? | | ??????????????????????????????????????? | | ????????????#######??????????####?????? | | ???????????## #####?### ??????? | | ???????????# ? ???????? | | ??????????## ? ? ????????? | | ?????????## # # #?????????? | | ?????????# # #?????????? | | ?????????# s # @ #?????????? | | ??????????# s #####?????? | | ???????????# *% h d"% #???? | | ???????????## [ * d " #???? | | ????????????# a ######???? | | ????????????#; a #????????? | | ????????????###### ###????????? | | ?????????????????# ###??????????? | | ?????????????????# a #????????????? | | ?????????????????## a ????????????? | | ??????????????????# ????????????? | | ?????????????????? a ????????????? | | ????????????????? a #???????????? | | ????????????????? #???????????? | | ?????????????????# #???????????? | | ?????????????????## ##???????????? | | ???????????????????# " #????????????? | | ???????????????????? ?????????????? | | ??????????????????????????????????????? | | ??????????????????????????????????????? | | ??????????????????????????????????????? | | ??????????????????????????????????????? | | ??????????????????????????????????????? | | ??????????????????????????????????????? | | ??????????????????????????????????????? | +----------------------------------------------------+ Best States ------------- Heat Dissipation 35 Energy Generation 10 Energy Capacity 125 Matter Stores 300 Matter Capacity 300 Sight Range 16 Terrain Scan Density 10 Evasion (%) 59 Item Schematics ----------------- None Robot Schematics ------------------ None Fabricated ------------ Nothing Alien Tech Used ----------------- None Achievements -------------- Hunted It's Just You Tank Challenges ------------ None Game ------ Seed NeutrinoGhostFlakker Manual? 0 Play Time 00:11:25 Cumulative 2.5 hours Start 2024.08.30 @ 21:25:13 End 2024.08.30 @ 21:38:16 Sessions 1 Manual Loads 0 Difficulty Rogue Special Mode None Game No. 9 Rogue 9 Adventurer 0 Explorer 0 Win Type - Total 0 Types 0/0/0/0/0/0/0/0/0 Lore% 1 Gallery% 6 Achievement% 7 Wizard Run 0 Options --------- Layout 1 ASCII 0 Keyboard 0 Movement Mouse Keybinds 0 Fullscreen 1 Font 24/Smallcaps Map View 50x40 Zoom Use 0% Tactical HUD 0 Map Filters NONE Filters NONE Steam 1 RUN: 27c84a38-68f1-4215-9e71-fb2b3c41e314